Cogmind - Beta 12 X2 @@@ ROGUE MODE // 2022.09.15 @ 14:02:29 Player: btmk16 Result: Destroyed by H-88 Terminator with KE Penetrator Performance ------------- Evolutions (9) 4500 Regions Visited (18) 3600 Robots Destroyed (350) 1750 Value Destroyed (12904) 12904 Prototype IDs (35) 700 Alien Tech Used (0) 0 Bonus (1091) 1091 TOTAL SCORE: 24545 Bonus ------- High Alert Combat Kills 739 Follower Combat Kills 2000 Met Data Miner 300 Friendly Fire -1948 Cogmind --------- Core Integrity 0/1600 Matter 125/300 Energy 39/100 System Corruption 17% Temperature Cool (9) Movement Core (50) Location -1/Command Parts ------- > --- POWER (2) -------- (None) > --- PROPULSION (8) --- (None) > --- UTILITY (12) ----- Terrain Scan Processor > --- WEAPON (3) ------- (None) > --- INVENTORY (5) ---- Antigrav Array Improved Heavy Armor Plating Light Regenerative Plating Peak State ------------ > --- POWER ------------ Cooled Antimatter Reactor Cooled Antimatter Reactor > --- PROPULSION ------- Biometal Leg Biometal Leg Centrium Leg Centrium Leg Compact Wheel Compact Wheel > --- UTILITY ---------- Advanced Cryofiber Web Large Storage Unit Medium Matter Pod Enhanced Optical Array Terrain Scan Processor Advanced Target Analyzer Advanced Target Analyzer Advanced Phase Shifter Light Regenerative Plating Improved Focal Shield Improved Hardlight Generator Field Recycling Unit > --- WEAPON ----------- Enhanced Quantum Rifle Enhanced Quantum Rifle Enhanced Nova Cannon > --- INVENTORY -------- Micro Antimatter Reactor Cooled Antimatter Reactor Light Quantum Reactor Medium Treads Medium Storage Unit High-capacity Storage Unit Improved Hardlight Generator Long-range Proton Cannon Heavy Machine Gun KE Penetrator KE Penetrator [Rating: 145] Favorites ----------- Power Cooled Deuterium Engine Engine Cooled Deuterium Engine Power Core Neutrino Core Reactor Antimatter Reactor Propulsion Improved Treads Treads Improved Treads Leg Carbon-fiber Leg Wheel Wheel Hover Unit Combat Linear Gravjet Flight Unit Nuclear Pulse Thruster Utility Large Storage Unit Device Advanced Heat Sink Storage Large Storage Unit Processor Improved Target Analyzer Hackware Improved Hacking Suite Protection Hardened Heavy Armor Plating Weapon Scythe Energy Gun Improved Medium Laser Energy Cannon Enhanced Nova Cannon Ballistic Gun KE Penetrator Ballistic Cannon Magnetic Acceleration Cannon Launcher Tactical Quantum Warhead Impact Weapon Great Maul Slashing Weapon Scythe Piercing Weapon Lance Build | -11 -10 -9 -8 -7 -6 -6 -6 -6 -5 -5 -5 -5 -4 -4 -3 -2 -1 -1 ------- Run | Scr Mat Mat Mat Fac Fac Low Low Dat Pro Fac Was Fac Fac Ext Res Res Acc Com Slots Evolved 18 | . . 2 2 2 2 . . . . 2 . . 2 . 2 2 2 . Power 1 | . . . . . . . . . . 1 . . . . . . . . Propulsion 6 | . . 1 . 1 . . . . . 1 . . 1 . . . 2 . Utility 10 | . . 1 2 1 2 . . . . . . . 1 . 1 2 . . Weapon 1 | . . . . . . . . . . . . . . . 1 . . . Parts Attached 468 | 7 8 26 38 26 49 4 4 2 14 59 25 10 39 38 24 62 9 24 Power 48 | 1 1 2 3 1 2 1 . . . 9 3 3 2 5 3 9 1 2 Engine 14 | 1 1 2 3 . 2 1 . . . 3 . . . . . 1 . . Core 17 | . . . . 1 . . . . . 6 1 1 2 5 1 . . . Reactor 17 | . . . . . . . . . . . 2 2 . . 2 8 1 2 Propulsion 143 | 2 2 8 14 9 13 1 1 . 1 24 6 1 9 17 3 23 2 7 Treads 70 | 2 2 7 10 9 10 1 1 . 1 2 4 1 4 12 1 2 1 . Leg 36 | . . 1 . . 2 . . . . 19 1 . . 2 1 9 1 . Wheel 21 | . . . 4 . 1 . . . . . . . . . 1 12 . 3 Hover 6 | . . . . . . . . . . . 1 . 4 1 . . . . Flight 10 | . . . . . . . . . . 3 . . 1 2 . . . 4 Utility 174 | 2 2 9 14 9 22 . 1 . 5 18 9 6 20 11 12 18 5 11 Device 73 | 1 1 1 4 5 7 . 1 . 4 13 3 4 6 5 6 6 . 6 Storage 19 | 1 1 . 1 1 2 . . . . 1 . 1 1 . 2 6 1 1 Processor 16 | . . . 2 1 4 . . . 1 1 . . 2 . . 4 1 . Hackware 7 | . . . . . 2 . . . . 1 1 . 2 . 1 . . . Protection 59 | . . 8 7 2 7 . . . . 2 5 1 9 6 3 2 3 4 Artifact . | . . . . . . . . . . . . . . . . . . . Weapon 103 | 2 3 7 7 7 12 2 2 2 8 8 7 . 8 5 6 12 1 4 Energy Gun 12 | 2 3 . . . . . . . . . . . . . 1 5 . 1 Energy Cannon 7 | . . . . . . . . . . . . . . . 2 2 1 2 Ballistic Gun 30 | . . 4 3 2 5 1 1 1 3 1 1 . 1 3 . 4 . . Ballistic Cannon 12 | . . . . . 2 . . 1 2 1 4 . 1 1 . . . . Launcher 10 | . . . . . 2 1 . . 2 1 1 . 1 . 1 . . 1 Special Weapon . | . . . . . . . . . . . . . . . . . . . Impact Weapon 11 | . . . 3 1 1 . . . 1 4 1 . . . . . . . Slashing Weapon 16 | . . 3 1 4 2 . 1 . . 1 . . . 1 2 1 . . Piercing Weapon 5 | . . . . . . . . . . . . . 5 . . . . . Special Melee Weapon . | . . . . . . . . . . . . . . . . . . . Unidentified Prototypes 16 | . 1 2 2 2 1 . . . 1 . 3 . 1 . . 1 . 2 Corrupted Parts 4 | . . . 1 . . . . . . 1 . . . 1 . . . 1 System Corruption 28 | . . . 5 . . . . . . 10 . . . 3 . . . 10 Parts Lost 190 | . . 5 6 5 28 3 . . 5 43 . . 16 1 28 25 2 23 Power 23 | . . 1 1 . 1 1 . . . 7 . . 2 . 4 4 . 2 Propulsion 74 | . . 2 2 2 8 1 . . . 21 . . 7 1 9 12 . 9 Utility 69 | . . 1 3 3 16 1 . . 2 11 . . 6 . 11 5 1 9 Weapon 24 | . . 1 . . 3 . . . 3 4 . . 1 . 4 4 1 3 Highest Loss Streak 18 | . . 2 2 2 10 2 . . 3 11 . . 13 1 11 17 1 18 To Critical Strikes 5 | . . . . . 1 . . . . 2 . . 2 . . . . . Average Slot Usage (%) 85 | . 100 98 89 91 86 84 87 81 95 84 73 63 67 87 84 73 24 52 Engine 5 | . 14 11 8 1 4 4 6 6 6 2 7 . . . . . . . Core 2 | . . . . 5 1 . . . . 4 2 5 4 8 5 . . . Treads 19 | . 28 32 24 24 19 25 26 26 25 2 6 14 17 21 22 . 1 2 Leg 2 | . . . . . 1 . . . . 19 1 1 . 1 . 10 2 3 Wheel 1 | . . . 2 5 1 . . . . . . . . . . 10 . 7 Device 10 | . 14 7 8 10 13 6 7 13 20 13 5 10 9 9 16 9 . 8 Storage 7 | . 14 11 9 7 9 13 13 13 8 4 . 1 5 5 6 8 2 6 Processor 6 | . . . 1 10 6 6 6 6 10 13 11 3 8 9 1 9 16 12 Hackware 2 | . . . . . 3 13 13 13 7 5 6 . . 9 3 . . . Protection 7 | . . 13 16 7 8 . . . . . 9 11 9 5 9 2 1 2 Energy Gun 1 | . 28 2 . . . . . . . . 1 . . . . 2 . 1 Ballistic Gun 2 | . . 3 . . 4 5 5 . 6 . . . . 3 7 2 . . Ballistic Cannon 1 | . . . . . . 6 6 . 3 . 3 5 3 1 . . . . Impact Weapon 2 | . . . 7 1 . . . . 1 5 5 . . . . . . . Slashing Weapon 5 | . . 15 10 12 7 . . . . 2 . . . . 1 2 . . Naked Turns 74 | . . . . . . . . . . . . . . . 70 4 . . Heaviest Build 147 | 12 32 46 74 63 65 48 54 53 56 67 113 147 142 84 104 109 17 81 Greatest Support 217 | 40 46 66 63 112 112 97 97 97 97 97 160 187 217 143 143 116 30 48 Greatest Overweight (x) 8 | . . . 6 3 2 . . . . 2 . . 1 7 5 8 . 1 Average Overweight (x) . | . . . 1 1 . . . . . . . . . . . 1 . . Largest Inventory Capacity 20 | 8 15 15 15 15 15 15 15 15 15 15 5 15 15 15 15 20 5 5 Average Capacity 13 | 6 12 15 15 15 15 15 15 15 15 14 5 8 15 15 14 14 5 5 Most Carried 15 | 6 15 15 15 15 15 15 15 15 15 15 5 9 15 15 15 15 5 5 Average Carried 12 | 3 10 14 14 14 14 14 14 15 14 10 4 5 13 14 13 9 4 3 Final Capacity 15 | 8 15 15 15 15 15 15 15 15 15 5 5 15 15 15 5 5 5 5 Final Carried 15 | 6 15 15 15 15 14 14 15 15 15 4 5 7 15 15 5 5 5 5 Class Distribution -------------------- 53% | Mutant 28% | Scavenger-Mutant 12% | Hacker-Mutant Dominant Class ---------------- Mutant | -10/Materials Mutant | -9/Materials Mutant | -8/Materials Mutant | -7/Factory Mutant | -6/Factory Hacker-Mutant | -6/Lower Caves Hacker-Mutant | -6/Lower Caves Hacker-Mutant | -6/Data Miner Scavenger-Mutant | -5/Proximity Caves Scavenger-Mutant | -5/Factory Hacker-Mutant | -5/Waste Scavenger-Mutant | -5/Factory Scavenger-Mutant | -4/Factory Scavenger-Mutant | -4/Extension Scavenger-Mutant | -3/Research Scavenger-Mutant | -2/Research Mutant | -1/Access Mutant | -1/Command Resources | -11 -10 -9 -8 -7 -6 -6 -6 -6 -5 -5 -5 -5 -4 -4 -3 -2 -1 -1 ----------- Run | Scr Mat Mat Mat Fac Fac Low Low Dat Pro Fac Was Fac Fac Ext Res Res Acc Com Matter Collected 8185 | 187 163 413 424 337 889 313 111 . 727 703 640 306 652 866 594 823 . 37 Remotely . | . . . . . . . . . . . . . . . . . . . Salvage Created 15637 | 13 693 2322 2194 1511 2041 364 120 . 688 1655 190 309 854 336 1270 997 . 80 Parts 755 | 5 41 137 78 89 96 13 5 . 25 65 . 11 42 13 71 60 . 4 Haulers Intercepted 17 | . 2 4 5 4 1 . . . . . . . . . . 1 . . Recyclers Shooed 11 | . 1 . 1 . 3 . . . . . . . . 1 5 . . . Parts Field Recycled . | . . . . . . . . . . . . . . . . . . . Retrieved Matter . | . . . . . . . . . . . . . . . . . . . Parts Self-Destructed 59 | . . . . . . 15 4 . 40 . . . . . . . . . Prevented . | . . . . . . . . . . . . . . . . . . . Kills | -11 -10 -9 -8 -7 -6 -6 -6 -6 -5 -5 -5 -5 -4 -4 -3 -2 -1 -1 ------- Run | Scr Mat Mat Mat Fac Fac Low Low Dat Pro Fac Was Fac Fac Ext Res Res Acc Com Combat Hostiles Destroyed 251 | . 10 37 39 23 33 10 3 . 19 30 . 5 16 3 13 8 . 2 Melee 115 | . . 21 25 22 14 . . . . 17 . . 8 3 2 3 . . Guns 64 | . 10 15 2 1 14 1 . . 4 1 . . 2 . 11 3 . . Cannons 30 | . . . . . . 3 3 . 9 5 . 5 3 . . 2 . . AOE 21 | . . . . . 4 6 . . 6 . . . 3 . . . . 2 Classes Destroyed 18 | 1 7 5 . 2 . . . . 1 . 1 . . . 1 . . . Worker 30 | . 1 5 8 3 3 . . . . . . . 3 . 4 3 . . Builder 7 | . . 1 3 1 1 . . . . . . . . . . 1 . . Tunneler 4 | 1 . . 1 1 1 . . . . . . . . . . . . . Hauler 17 | . 2 4 5 4 1 . . . . . . . . . . 1 . . Recycler 19 | . 2 4 2 1 3 . . . . 1 . . 1 1 2 2 . . Mechanic 1 | . . 1 . . . . . . . . . . . . . . . . Operator 5 | . 1 2 2 . . . . . . . . . . . . . . . Watcher 11 | . 3 2 2 1 1 . . . . . . . 2 . . . . . Swarmer 46 | . 3 3 12 6 11 3 1 . 5 . . . . . . . . 2 Grunt 109 | . 7 21 17 8 15 2 1 . 10 16 . 3 6 . 3 . . . Brawler 9 | . . 2 1 1 2 2 . . . . . 1 . . . . . . Duelist 4 | . . 1 1 . . 1 . . . . . 1 . . . . . . Protector 1 | . . . . . . . . . 1 . . . . . . . . . Sentry 35 | . . 10 8 4 1 1 1 . 1 3 . . 2 3 . 1 . . Hunter 14 | . . . . 1 2 1 . . . 4 . . 2 . 2 2 . . Programmer 31 | . . . . 3 2 . . . 2 7 . . 6 . 6 5 . . Heavy 1 | . . . . . . . . . . . . . . . 1 . . . Surgeon 2 | . . . . . . . . . . . . 2 . . . . . . Thug 2 | . . . . . . . . . . . . 1 . . 1 . . . Martyr 2 | . . . . . . . . . . . 2 . . . . . . . Best Kill Streak 10 | 1 3 8 7 5 5 7 3 . 6 6 . 5 10 2 6 3 . 2 Combat Bots Only 8 | . 3 8 4 4 4 7 3 . 6 6 . 5 5 2 3 2 . 2 Max Kills in Single Turn 3 | 1 1 1 1 1 2 3 1 . 2 1 1 3 3 1 2 1 . 1 Gunslinging . | . . . . . . . . . . . . . . . . . . . Exploded 3 | . . . . . 2 3 . . 2 . . . 2 . . . . 1 Melee 1 | . . 1 1 1 1 . . . . 1 . . 1 1 1 1 . . Uniques/NPCs Destroyed . | . . . . . . . . . . . . . . . . . . . Combat | -11 -10 -9 -8 -7 -6 -6 -6 -6 -5 -5 -5 -5 -4 -4 -3 -2 -1 -1 -------- Run | Scr Mat Mat Mat Fac Fac Low Low Dat Pro Fac Was Fac Fac Ext Res Res Acc Com Damage Taken 38704 | . 216 1409 2665 1854 5090 404 78 . 1098 5572 . 391 5296 503 4334 4567 901 4326 Core 6693 | . 7 188 177 220 478 59 . . 86 958 . 18 812 211 788 1078 131 1482 Absorbed by Shields 2453 | . . . . 464 188 . . . 391 206 . . . 23 491 492 . 198 Reduced by Siege Mode 101 | . . . . . . . . . . . . . 101 . . . . . Redirected to Shielding 161 | . . . . . 104 . . . . . . . 57 . . . . . Regen/Repaired (Parts) 2203 | . . . . . . . . . . 80 980 23 505 . 280 239 10 86 Core Remaining (%) 48 | 100 97 53 67 68 . . . . 26 . . 2 . 11 39 25 . . Volleys Fired 447 | 1 38 46 5 6 66 10 5 . 55 39 21 19 39 15 60 18 . 4 Largest 3 | 2 2 2 2 2 2 2 2 . 2 2 1 1 1 2 3 3 . 1 Hottest 250 | 90 112 112 50 50 78 92 78 . 92 90 40 83 83 66 147 250 . 81 Shots Fired 765 | 2 76 83 6 12 111 22 13 . 96 56 25 20 39 25 123 52 . 4 Gun 591 | 2 76 83 6 12 97 9 6 . 47 22 24 . 16 24 119 48 . . Cannon 156 | . . . . . 10 10 7 . 43 34 1 20 20 1 4 4 . 2 Launcher 18 | . . . . . 4 3 . . 6 . . . 3 . . . . 2 Special . | . . . . . . . . . . . . . . . . . . . Kinetic 573 | . . 43 6 12 107 19 13 . 90 56 2 20 36 25 105 39 . . Thermal 168 | 2 76 40 . . . . . . . . 23 . . . 14 13 . . Explosive 16 | . . . . . 4 3 . . 6 . . . 3 . . . . . Electromagnetic 8 | . . . . . . . . . . . . . . . 4 . . 4 Robot Hit Streak 19 | 1 8 13 5 4 13 6 7 . 7 10 19 6 7 4 8 4 . 3 Robot Miss Streak 6 | . 2 2 1 2 2 2 2 . 3 5 1 5 2 2 6 4 . . Penetration Max 1 | . . . . . . . . . . 1 . . . 1 1 1 . . Secondary Targets 3 | . . 1 . . 1 . . . . . . . . . 1 . . . Max Gunslinging Chain 1 | . . 1 . . 1 . . . . . . . . . 1 . . . Shots Hit Robots 1019 | 1 49 150 126 77 146 12 8 . 62 136 30 12 61 18 92 38 . 1 Core Hits 457 | 1 23 52 31 37 76 21 5 . 41 35 11 8 36 9 40 24 . 7 Critical Kills 13 | . . 1 4 1 2 . . . . 2 . . . . 2 1 . . Critical Parts Destroyed 46 | . . . 19 1 2 . . . 2 15 5 . . . . 2 . . Critical Strikes 125 | . 6 8 27 6 12 1 1 . 7 35 5 1 3 2 7 4 . . Burn 11 | . 6 3 . . . . . . . . . . . . 2 . . . Destroy 14 | . . 1 . . 3 . . . 2 2 1 . . . 2 3 . . Blast 20 | . . . . . . 1 1 . 5 11 . 1 1 . . . . . Smash 45 | . . . 23 2 1 . . . . 15 4 . . . . . . . Sever 31 | . . 4 4 4 8 . . . . 7 . . . . 3 1 . . Impale 4 | . . . . . . . . . . . . . 2 2 . . . . Melee Attacks 753 | . . 114 170 101 101 . . . . 140 6 . 57 10 32 22 . . Impact 183 | . . . 86 3 18 . . . . 70 6 . . . . . . . Slashing 503 | . . 114 84 98 83 . . . . 70 . . . . 32 22 . . Piercing 67 | . . . . . . . . . . . . . 57 10 . . . . Sneak Attacks 83 | . . 22 25 15 8 . . . . 3 3 . . . 1 6 . . Combat Hostiles 3 | . . . . 2 . . . . . 1 . . . . . . . . Follow-up Attacks 65 | . . 7 27 8 12 . . . . 11 . . . . . . . . Damage Inflicted 39140 | 13 791 4599 5600 3362 4650 997 146 . 2133 5096 895 1535 3425 569 3229 1667 4 429 Guns 8297 | 13 791 1013 81 139 1450 58 60 . 626 266 313 . 284 200 2343 660 . . Cannons 3970 | . . . . . 26 170 86 . 949 684 18 958 879 . 67 133 . . Explosions 3659 | . . . . . 416 769 . . 558 . . 565 954 . . . . 397 Melee 23058 | . . 3586 5519 3223 2748 . . . . 4136 564 . 1281 359 780 862 . . Ramming 156 | . . . . . 10 . . . . 10 . 12 27 10 39 12 4 32 Kinetic 10086 | . . 479 81 139 1476 228 146 . 1575 950 26 958 1163 200 2124 541 . . Thermal 2679 | 13 791 534 . . . . . . . . 305 565 . . 219 252 . . Explosive 2697 | . . . . . 416 769 . . 558 . . . 954 . . . . . Electromagnetic 464 | . . . . . . . . . . . . . . . 67 . . 397 Impact 6509 | . . . 3432 111 452 . . . . 1950 564 . . . . . . . Slashing 14909 | . . 3586 2087 3112 2296 . . . . 2186 . . . . 780 862 . . Piercing 1640 | . . . . . . . . . . . . . 1281 359 . . . . Highest Corruption 40 | . . 1 5 4 19 19 19 19 21 25 25 25 6 10 40 12 . 16 Average Corruption 13 | . . 1 5 3 12 19 19 19 19 16 25 25 4 7 18 6 . 9 Corruption Purged . | . . . . . . . . . . . . . . . . . . . Corruption Blocked 8 | . . . . . . . . . . 8 . . . . . . . . Effects 504 | . . 7 18 26 63 33 36 9 45 63 75 28 3 32 35 23 . 8 Message Errors 116 | . . 1 3 9 14 11 5 3 7 10 21 10 . 7 6 8 . 1 Matter Fused 125 | . . . 5 6 9 7 11 1 10 19 17 10 . 15 10 3 . 2 Heat Flow Errors 63 | . . 1 . 3 6 7 7 1 7 10 13 1 . 3 3 1 . . Energy Discharges 51 | . . 2 3 3 8 3 4 1 4 6 7 3 . 2 3 1 . 1 Parts Rejected 12 | . . . 1 . . . . . 1 2 . . 1 2 . 5 . . Data Loss (minor) 60 | . . 2 2 3 10 1 5 2 8 4 10 3 2 1 5 1 . 1 Data Loss (major) 26 | . . 1 3 2 5 2 1 . 1 4 3 . . 1 1 1 . 1 Misfires 16 | . . . . . 2 2 3 . 2 . 4 1 . 1 1 . . . Alerts 4 | . . . 1 . 1 . . 1 1 . . . . . . . . . Misdirections 11 | . . . . . 1 . . . 1 3 . . . . 2 2 . 2 Weapon Failures 20 | . . . . . 7 . . . 3 5 . . . . 4 1 . . Overload Shots . | . . . . . . . . . . . . . . . . . . . Overflow Damage 4335 | . . 307 1718 313 271 9 . . 71 749 443 85 110 . 134 97 . 28 Projectiles 146 | . . . . . . . . . 47 19 . 28 47 . 5 . . . Explosions 208 | . . . . . 62 9 . . 24 . . 57 28 . . . . 28 Melee 3981 | . . 307 1718 313 209 . . . . 730 443 . 35 . 129 97 . . Knockbacks 50 | . . . 4 . 6 1 . . 10 16 5 2 5 . 1 . . . Impact 25 | . . . 4 . 4 . . . . 10 5 . 1 . 1 . . . Kinetic 21 | . . . . . . 1 . . 9 5 . 2 4 . . . . . Secondary 4 | . . . . . 2 . . . 1 1 . . . . . . . . Self-Inflicted Damage 210 | . . . . . . 68 . . . . . 113 . . 2 5 1 21 Shots 4 | . . . . . . 2 . . . . . 1 . . . . . 1 Rammed 21 | . . . . . 1 . . . . . . 1 3 2 7 2 1 4 Targets Rammed 28 | . . . . . 2 . . . . 5 . 1 3 2 7 2 2 4 Kicked 6 | . . . . . . . . . . 5 . . . . . . 1 . Crushed 1 | . . . . . 1 . . . . . . . . . . . . . Highest Temperature 632 | 30 102 213 20 267 284 226 247 134 270 326 390 148 37 96 632 161 . 7 Average Temperature 91 | 18 32 92 7 89 79 110 103 68 101 115 93 41 12 52 156 57 . 7 Received Heat Transfer 6641 | . 87 459 1053 354 1625 45 36 . 231 1397 . 63 292 103 164 429 117 186 Effects 10 | . . . . . 2 . . . . . 3 . . . 5 . . . Shutdowns 4 | . . . . . . . . . . . 1 . . . 3 . . . Energy Bleed 3 | . . . . . . . . . . . 2 . . . 1 . . . Interference 2 | . . . . . 2 . . . . . . . . . . . . . Damage (minor) 1 | . . . . . . . . . . . . . . . 1 . . . Siege Activations 3 | . . . . . . . . . . . . . 3 . . . . . Total Turns 36 | . . . . . . . . . . . . . 36 . . . . . Longest Duration 18 | . . . . . . . . . . . . . 18 . . . . . Robots Corrupted . | . . . . . . . . . . . . . . . . . . . Combat Hostiles . | . . . . . . . . . . . . . . . . . . . Parts Fried 45 | . . . 33 1 2 . . . . 4 4 . . . . . . 1 Impact Corruptions 90 | . . . 53 1 5 . . . . 24 7 . . . . . . . Robots Melted 1 | . . 1 . . . . . . . . . . . . . . . . Combat Hostiles 1 | . . 1 . . . . . . . . . . . . . . . . Parts Melted 11 | . 7 1 . . . . . . . . . . . . 3 . . . Heat Transferred 5726 | 37 2197 1332 . . . . . . . . 851 350 . . 700 259 . . Parts Sabotaged . | . . . . . . . . . . . . . . . . . . . Parts Stolen . | . . . . . . . . . . . . . . . . . . . Parts Stripped . | . . . . . . . . . . . . . . . . . . . Power Chain Reactions . | . . . . . . . . . . . . . . . . . . . Missiles Intercepted . | . . . . . . . . . . . . . . . . . . . Alert | -11 -10 -9 -8 -7 -6 -6 -6 -6 -5 -5 -5 -5 -4 -4 -3 -2 -1 -1 ------- Run | Scr Mat Mat Mat Fac Fac Low Low Dat Pro Fac Was Fac Fac Ext Res Res Acc Com Peak Influence 958 | 5 179 474 893 625 525 . . . . 290 70 958 752 415 394 248 114 261 Initial 399 | . 3 45 197 399 282 . . . . 126 70 . 389 318 215 62 5 66 Average 265 | 1 81 225 440 466 285 . . . . 167 17 463 347 196 212 80 41 132 Maximum Alert Level 3 | . . 2 3 2 2 . . . . 1 . 3 3 2 1 1 . 1 Low Security (%) 43 | 100 100 34 13 . 28 . . . . 73 100 31 22 47 46 90 100 89 Level 1 34 | . . 58 47 16 54 . . . . 26 . 12 62 43 53 9 . 10 Level 2 15 | . . 7 9 83 17 . . . . . . 19 13 9 . . . . Level 3 5 | . . . 28 . . . . . . . . 36 1 . . . . . Level 4 . | . . . . . . . . . . . . . . . . . . . Level 5 . | . . . . . . . . . . . . . . . . . . . High Security . | . . . . . . . . . . . . . . . . . . . Max Security . | . . . . . . . . . . . . . . . . . . . Squads Dispatched 72 | . 1 6 7 8 9 . . . 1 10 . 9 6 . 6 4 1 4 Investigation 18 | . . 2 1 3 4 . . . . 4 . 2 1 . . . 1 . Extermination 18 | . . . . 3 2 . . . . 3 . . 3 . 3 2 . 2 Reinforcement 29 | . 1 4 6 1 2 . . . . 3 . 4 1 . 3 2 . 2 Assault 4 | . . . . 1 1 . . . 1 . . 1 . . . . . . Garrison 3 | . . . . . . . . . . . . 2 1 . . . . . Intercept . | . . . . . . . . . . . . . . . . . . . Searches Triggered . | . . . . . . . . . . . . . . . . . . . Data Miner Redirects 5 | . . . . . . . . . . 2 . 1 1 . . . 1 . Construction Impeded 3 | . . . . . . . . . . . . . 1 . . 2 . . Haulers Reinforced 6 | . . . . 1 . . . . . 1 . 2 . . 2 . . . Active Scanning Responses . | . . . . . . . . . . . . . . . . . . . Cargo Convoy Interrupts 1 | . . . . . . . . . . 1 . . . . . . . . Stealth | -11 -10 -9 -8 -7 -6 -6 -6 -6 -5 -5 -5 -5 -4 -4 -3 -2 -1 -1 --------- Run | Scr Mat Mat Mat Fac Fac Low Low Dat Pro Fac Was Fac Fac Ext Res Res Acc Com Distress Signals 23 | . 1 7 3 1 . . . . . 1 . 1 2 1 2 1 1 2 Communications Jammed 30 | . . . . . . . . . . . . . . . 30 . . . Distress Signals 15 | . . . . . . . . . . . . . . . 15 . . . Times Spotted 482 | . 17 54 57 37 52 11 2 . 27 45 1 17 26 18 29 31 11 47 Peak Tracking Total 16 | . 6 8 5 6 9 7 2 . 6 7 1 7 7 6 8 15 10 16 Tactical Retreats 52 | . . 2 3 3 9 . . . 3 10 . 2 2 1 3 2 2 10 Traps | -11 -10 -9 -8 -7 -6 -6 -6 -6 -5 -5 -5 -5 -4 -4 -3 -2 -1 -1 ------- Run | Scr Mat Mat Mat Fac Fac Low Low Dat Pro Fac Was Fac Fac Ext Res Res Acc Com Traps Triggered 12 | . . 2 . 3 2 . . . . 1 . . . . . 3 . 1 Indirectly . | . . . . . . . . . . . . . . . . . . . Trap Hack Attempts . | . . . . . . . . . . . . . . . . . . . Triggered . | . . . . . . . . . . . . . . . . . . . Disarmed . | . . . . . . . . . . . . . . . . . . . Reprogrammed . | . . . . . . . . . . . . . . . . . . . Reused . | . . . . . . . . . . . . . . . . . . . Traps Extracted . | . . . . . . . . . . . . . . . . . . . Installed . | . . . . . . . . . . . . . . . . . . . Triggered 3 | . . . . . . . . . . 3 . . . . . . . . Machines | -11 -10 -9 -8 -7 -6 -6 -6 -6 -5 -5 -5 -5 -4 -4 -3 -2 -1 -1 ---------- Run | Scr Mat Mat Mat Fac Fac Low Low Dat Pro Fac Was Fac Fac Ext Res Res Acc Com Machines Disabled 22 | . . 1 . . . 1 . . 1 1 . 5 11 . . 1 . 1 Max in Single Turn 5 | . . 1 . . . 1 . . 1 . . 2 5 . . 1 . 1 Garrison Access 2 | . . . 1 . 1 . . . . . . . . . . . . . Machines Sabotaged . | . . . . . . . . . . . . . . . . . . . Overloaded Fab Kills . | . . . . . . . . . . . . . . . . . . . Hacking | -11 -10 -9 -8 -7 -6 -6 -6 -6 -5 -5 -5 -5 -4 -4 -3 -2 -1 -1 --------- Run | Scr Mat Mat Mat Fac Fac Low Low Dat Pro Fac Was Fac Fac Ext Res Res Acc Com Machines Accessed 53 | . 6 8 5 6 6 . 1 4 . 5 . 1 2 2 2 2 2 1 Terminals 35 | . 6 8 4 1 4 . . . . 2 . 1 1 2 2 2 1 1 Fabricators 5 | . . . . 1 1 . . . . 3 . . . . . . . . Repair Stations 5 | . . . . 3 . . . . . . . . 1 . . . 1 . Recycling Units . | . . . . . . . . . . . . . . . . . . . Scanalyzers 1 | . . . . 1 . . . . . . . . . . . . . . Garrison Access 2 | . . . 1 . 1 . . . . . . . . . . . . . Total Hacks 163 | . 20 20 14 17 17 . 1 29 . 13 . 1 6 13 3 4 4 1 Successful 98 | . 15 11 9 6 9 . 1 29 . 9 . . 2 3 . 3 1 . Failed 63 | . 4 8 5 11 8 . . . . 4 . 1 4 10 3 1 3 1 Catastrophic 13 | . . . 1 2 . . . . . 3 . 1 1 1 1 . 2 1 Database Lockouts 2 | . 1 1 . . . . . . . . . . . . . . . . Manual 38 | . 8 12 1 . 4 . . . . 4 . 1 . . 3 1 3 1 Terminals 101 | . 20 20 13 2 13 . . . . 6 . 1 3 13 3 4 2 1 Fabricators 13 | . . . . 3 3 . . . . 7 . . . . . . . . Repair Stations 15 | . . . . 10 . . . . . . . . 3 . . . 2 . Recycling Units . | . . . . . . . . . . . . . . . . . . . Scanalyzers 2 | . . . . 2 . . . . . . . . . . . . . . Garrison Access 2 | . . . 1 . 1 . . . . . . . . . . . . . Terminal Hacks 66 | . 13 9 7 . 2 . 1 29 . . . . . 3 . 2 . . Record 11 | . . . . . . . . 11 . . . . . . . . . . Part Schematic 10 | . . . . . 1 . . 9 . . . . . . . . . . Robot Schematic 6 | . . . . . . . . 6 . . . . . . . . . . Robot Analysis 6 | . 3 3 . . . . . . . . . . . . . . . . Prototype ID Bank 9 | . 1 2 3 . . . . 3 . . . . . . . . . . Open Door 2 | . . . . . . . 1 . . . . . . 1 . . . . Level Access Points 1 | . . . . . . . . . . . . . . . . 1 . . Emergency Access Points 2 | . 2 . . . . . . . . . . . . . . . . . Terminal Index 1 | . . . . . . . . . . . . . . . . 1 . . Alert Level 3 | . . 2 1 . . . . . . . . . . . . . . . Unreport Threat 3 | . . 1 . . . . . . . . . . . 2 . . . . Locate Traps 2 | . 1 . 1 . . . . . . . . . . . . . . . Recall Reinforcements 1 | . 1 . . . . . . . . . . . . . . . . . Hauler Manifests 2 | . 1 . 1 . . . . . . . . . . . . . . . Registered Components 1 | . 1 . . . . . . . . . . . . . . . . . Zone Layout 6 | . 3 1 1 . 1 . . . . . . . . . . . . . Fabricator Hacks 11 | . . . . 2 2 . . . . 7 . . . . . . . . Network Status 2 | . . . . 1 . . . . . 1 . . . . . . . . Load Schematic 4 | . . . . . 1 . . . . 3 . . . . . . . . Build 5 | . . . . 1 1 . . . . 3 . . . . . . . . Repair Station Hacks 5 | . . . . 3 . . . . . . . . 2 . . . . . Scan Component 4 | . . . . 3 . . . . . . . . 1 . . . . . Repair 1 | . . . . . . . . . . . . . 1 . . . . . Recycling Unit Hacks . | . . . . . . . . . . . . . . . . . . . Scanalyzer 1 | . . . . 1 . . . . . . . . . . . . . . Insert Component 1 | . . . . 1 . . . . . . . . . . . . . . Garrison Access Hacks 2 | . . . 1 . 1 . . . . . . . . . . . . . Seal Access 2 | . . . 1 . 1 . . . . . . . . . . . . . Unauthorized Hacks 13 | . 2 2 1 . 4 . . . . 2 . . . . . 1 1 . Terminals 13 | . 2 2 1 . 4 . . . . 2 . . . . . 1 1 . Track 4 | . 1 . 1 . 2 . . . . . . . . . . . . . Botnet 9 | . 1 2 . . 2 . . . . 2 . . . . . 1 1 . Fabricators . | . . . . . . . . . . . . . . . . . . . Repair Stations . | . . . . . . . . . . . . . . . . . . . Recycling Units . | . . . . . . . . . . . . . . . . . . . Scanalyzers . | . . . . . . . . . . . . . . . . . . . Garrison Access . | . . . . . . . . . . . . . . . . . . . Data Cores Recovered 1 | . . 1 . . . . . . . . . . . . . . . . Used 1 | . . 1 . . . . . . . . . . . . . . . . Hacking Detections 41 | . 4 8 3 6 5 . . . . 5 . 1 1 1 2 2 2 1 Full Trace Events 14 | . . 1 1 3 3 . . . . 4 . . 1 . . . 1 . Feedback Events 1 | . . . . . . . . . . . . . 1 . . . . . Corruption 1 | . . . . . . . . . . . . . 1 . . . . . Feedback Blocked . | . . . . . . . . . . . . . . . . . . . Robot Schematics Acquired 6 | . . . . . . . . 6 . . . . . . . . . . Robots Built 1 | . . . . 1 . . . . . . . . . . . . . . Authchips . | . . . . . . . . . . . . . . . . . . . Time 67 | . . . . 67 . . . . . . . . . . . . . . Total Robot Build Rating 4 | . . . . 4 . . . . . . . . . . . . . . Part Schematics Acquired 10 | . . . . . 1 . . 9 . . . . . . . . . . Parts Built 4 | . . . . . 2 . . . . 2 . . . . . . . . Authchips . | . . . . . . . . . . . . . . . . . . . Time 511 | . . . . . 106 . . . . 405 . . . . . . . . Total Part Build Rating 23 | . . . . . 12 . . . . 11 . . . . . . . . Parts Repaired 1 | . . . . . . . . . . . . . 1 . . . . . Time 108 | . . . . . . . . . . . . . 108 . . . . . Parts Recycled . | . . . . . . . . . . . . . . . . . . . Recycled Matter . | . . . . . . . . . . . . . . . . . . . Retrieved Matter . | . . . . . . . . . . . . . . . . . . . Retrieved Components . | . . . . . . . . . . . . . . . . . . . Parts Scanalyzed 1 | . . . . 1 . . . . . . . . . . . . . . Part Schematics Acquired . | . . . . . . . . . . . . . . . . . . . Parts Damaged . | . . . . . . . . . . . . . . . . . . . Bothacking | -11 -10 -9 -8 -7 -6 -6 -6 -6 -5 -5 -5 -5 -4 -4 -3 -2 -1 -1 ------------ Run | Scr Mat Mat Mat Fac Fac Low Low Dat Pro Fac Was Fac Fac Ext Res Res Acc Com Used RIF Installer . | . . . . . . . . . . . . . . . . . . . Robots Hacked . | . . . . . . . . . . . . . . . . . . . Non-combat . | . . . . . . . . . . . . . . . . . . . Combat . | . . . . . . . . . . . . . . . . . . . Robot Hacks Applied . | . . . . . . . . . . . . . . . . . . . Relay Couplers Released . | . . . . . . . . . . . . . . . . . . . Fabnet Peak Effective % . | . . . . . . . . . . . . . . . . . . . Robots Rewired 10 | . . . . . . 1 . . 1 . . . . 8 . . . . Allies Hacked . | . . . . . . . . . . . . . . . . . . . Hacks Repelled . | . . . . . . . . . . . . . . . . . . . Allies | -11 -10 -9 -8 -7 -6 -6 -6 -6 -5 -5 -5 -5 -4 -4 -3 -2 -1 -1 -------- Run | Scr Mat Mat Mat Fac Fac Low Low Dat Pro Fac Was Fac Fac Ext Res Res Acc Com Total Allies 43 | . . . . 1 . 1 . . 2 . 20 . . 19 . . . . Largest Group 20 | . . . . 1 . 1 1 . 2 . 20 18 . 17 9 . . . Highest-Rated Group 779 | . . . . 40 . 32 32 . 125 . 741 622 . 779 462 . . . Highest-Rated Ally 159 | . . . . 40 . 32 32 . 96 . 50 46 . 159 159 . . . Total Orders 6 | . . . . 3 . . . . . 1 . 2 . . . . . . STAY 1 | . . . . 1 . . . . . . . . . . . . . . FOLLOW 2 | . . . . 2 . . . . . . . . . . . . . . EXPLORE 2 | . . . . . . . . . . . . 2 . . . . . . RETURN 1 | . . . . . . . . . . 1 . . . . . . . . Ally Attacks 395 | . . . . . . 1 2 . 38 18 25 158 . 105 48 . . . Total Damage 11030 | . . . . . . 60 85 . 1129 388 695 3974 . 3690 1009 . . . Kills 58 | . . . . . . 1 . . 6 . 1 24 . 21 5 . . . Allies Corrupted 5 | . . . . . . . . . . . 2 3 . . . . . . Allies Melted . | . . . . . . . . . . . . . . . . . . . Intel | -11 -10 -9 -8 -7 -6 -6 -6 -6 -5 -5 -5 -5 -4 -4 -3 -2 -1 -1 ------- Run | Scr Mat Mat Mat Fac Fac Low Low Dat Pro Fac Was Fac Fac Ext Res Res Acc Com Robot Analysis Total 6 | . 3 3 . . . . . . . . . . . . . . . . Derelict Logs Recovered 1 | . . . . . . . 1 . . . . . . . . . . . Drone Launches 6 | . . . . . . . . . . 4 . 2 . . . . . . Drone Recoveries 2 | . . . . . . . . . . 2 . . . . . . . . Exploration | -11 -10 -9 -8 -7 -6 -6 -6 -6 -5 -5 -5 -5 -4 -4 -3 -2 -1 -1 ------------- Run | Scr Mat Mat Mat Fac Fac Low Low Dat Pro Fac Was Fac Fac Ext Res Res Acc Com Turns Passed 24091 | 89 1041 2870 3460 2429 2228 703 883 178 831 1848 1565 529 1450 952 1007 1275 221 532 Spaces Moved 12482 | 47 549 1352 1418 1294 1120 389 522 106 387 1000 505 269 699 462 504 923 296 640 Core 504 | 4 . . . . . . . . . 4 . . . 1 148 37 251 59 Treads 7685 | 43 549 1352 1070 655 665 389 522 106 387 55 346 269 559 388 329 . 1 . Legs 1022 | . . . . . . . . . . 685 . . . 1 1 291 44 . Wheels 2397 | . . . 348 639 455 . . . . . . . . . 26 595 . 334 Hover 312 | . . . . . . . . . . . 100 . 140 72 . . . . Flight 562 | . . . . . . . . . . 256 59 . . . . . . 247 Fastest Speed 34 | 50 160 160 110 110 130 165 165 165 163 34 34 160 68 110 50 50 50 34 Average Speed 141 | 150 160 160 187 136 151 165 165 165 164 104 129 161 142 152 128 112 60 68 Slowest Speed 400 | 160 160 160 400 232 245 166 165 165 165 260 170 163 225 400 320 260 170 110 Overloaded Moves . | . . . . . . . . . . . . . . . . . . . Propulsion Burnouts . | . . . . . . . . . . . . . . . . . . . Robots Hopped 10 | . . . . . . . . . . 5 . . . . . . . 5 Cave-ins Triggered . | . . . . . . . . . . . . . . . . . . . Exploration Rate (%) 45 | 4 97 96 85 33 28 50 68 70 56 26 96 11 14 42 20 19 9 31 Regions Visited 18 Branch Regions 6 Pre-discovered Areas 1 | . . . . . . . . 1 . . . . . . . . . . Known Exits Taken 3 | . . . . . . . . . . . . . 1 1 . 1 . . Unknown Exits Taken 13 | 1 1 1 1 1 1 1 1 1 1 . . 1 . . 1 . 1 . Scrap Searched 3 | . . . . . . . 1 . 2 . . . . . . . . . Spaces Dug 72 | . . 2 1 11 9 . . . . 2 . . 39 1 5 2 . . Terrain Destroyed 390 | . . 2 1 11 41 42 4 . 92 23 1 34 125 3 6 5 . . Melee 35 | . . 2 1 11 7 . . . . 2 . . 5 . 5 2 . . Projectile 70 | . . . . . 6 2 4 . 10 21 1 8 11 3 1 3 . . AOE 285 | . . . . . 28 40 . . 82 . . 26 109 . . . . . Terrain Rammed . | . . . . . . . . . . . . . . . . . . . Walls Destroyed . | . . . . . . . . . . . . . . . . . . . Machines Disabled . | . . . . . . . . . . . . . . . . . . . Actions | -11 -10 -9 -8 -7 -6 -6 -6 -6 -5 -5 -5 -5 -4 -4 -3 -2 -1 -1 --------- Run | Scr Mat Mat Mat Fac Fac Low Low Dat Pro Fac Was Fac Fac Ext Res Res Acc Com Total 17045 | 60 643 1837 1984 1801 1433 431 535 109 486 1499 1388 337 1020 666 688 1068 335 725 Wait 2504 | . 24 277 345 364 79 6 . . 17 247 796 26 142 57 44 20 22 38 Move 12446 | 46 548 1351 1417 1293 1119 388 521 105 386 991 504 268 698 461 503 922 295 630 Hop 9 | . . . . . . . . . . 4 . . . . . . . 5 Pick Up 139 | 6 12 12 14 9 18 1 2 . 4 11 4 2 16 4 8 10 2 4 Fast Attach 252 | 7 3 12 19 9 25 1 2 2 4 24 21 3 21 23 10 45 6 15 Attach 103 | . . 3 2 4 13 1 . . 4 22 1 2 17 3 10 9 3 9 Detach 55 | . 2 2 2 1 . . . . 1 2 6 4 14 4 3 5 2 7 Swap 114 | . 5 12 17 13 11 2 2 . 6 13 3 5 1 12 4 8 . . Drop 215 | . 11 24 37 16 17 . 3 2 2 13 26 7 14 23 7 7 3 3 Fire 447 | 1 38 46 5 6 66 10 5 . 55 39 21 19 39 15 60 18 . 4 Melee 646 | . . 98 126 86 83 . . . . 128 6 . 55 10 32 22 . . Ram 9 | . . . . . . . . . . . . . . . 2 2 1 4 Kick 6 | . . . . . . . . . . 5 . . . . . . 1 . Crush 13 | . . . . . 2 . . . . . . 1 3 2 5 . . . Escape Stasis 7 | . . . . . . . . . . . . . . 1 . . . 6 Rewire 80 | . . . . . . 22 . . 7 . . . . 51 . . . . Trap . | . . . . . . . . . . . . . . . . . . . Miscellaneous . | . . . . . . . . . . . . . . . . . . . Route ------- -11/Scrapyard -10/Materials (discovered 4 exits: *Mat x3 / [*Min]) -9/Materials (discovered 4 exits: *Mat x3 / [*Min]) -8/Materials (discovered 5 exits: *Fac x3 / *Sto x2) -7/Factory -6/Factory (discovered 2 exits: *Fac / [*Low]) -6/Lower Caves -6/Lower Caves -6/Data Miner -5/Proximity Caves -5/Factory -5/Waste -5/Factory -4/Factory -4/Extension -3/Research -2/Research (discovered 3 exits: *Acc x3) -1/Access -1/Command History --------- Turn | Location | Event 3 | -11/Scrapyard | Discovered new exit (range 16) 90 | -11/Scrapyard | Entered Materials 317 | -10/Materials | Build established: Mutant 491 | -10/Materials | Discovered new exit (range 9) 526 | -10/Materials | Central database locked down 737 | -10/Materials | Discovered new exit (range 13) 955 | -10/Materials | Discovered new exit (range 15) 1077 | -10/Materials | Discovered new exit (range 13) 1131 | -10/Materials | Entered another Materials area 1131 | -9/Materials | Evolved 2 slots: Propulsion x1, Utility x1 1467 | -9/Materials | Destroyed 8 combat bots 1911 | -9/Materials | Discovered new exit (range 8) 1975 | -9/Materials | Discovered new exit (range 3) 2622 | -9/Materials | Discovered new exit (range 13) 3438 | -9/Materials | Central database locked down 3541 | -9/Materials | Discovered new exit (range 10) 4001 | -9/Materials | Entered another Materials area 4001 | -8/Materials | Evolved 2 slots: Utility x2 4098 | -8/Materials | Build established: Scavenger-Mutant 4223 | -8/Materials | Discovered new exit (range 9) 4407 | -8/Materials | Build established: Mutant 4705 | -8/Materials | Discovered new exit (range 7) 4845 | -8/Materials | Discovered new exit (range 15) 5328 | -8/Materials | Identified exit to Storage 5774 | -8/Materials | Discovered new exit (range 13) 6609 | -8/Materials | Discovered new exit (range 9) 7461 | -8/Materials | Entered Factory 7461 | -7/Factory | Evolved 2 slots: Propulsion x1, Utility x1 7754 | -7/Factory | Fabricated I-36 Angel (x1) 9777 | -7/Factory | Discovered new exit (range 11) 9861 | -7/Factory | First assault squad dispatched 9890 | -7/Factory | Entered another Factory area 9890 | -6/Factory | Evolved 2 slots: Utility x2 10341 | -6/Factory | Discovered new exit (range 15) 10638 | -6/Factory | Fabricated Arm. Medium Treads? 10654 | -6/Factory | Lost 9 parts (1p3n5u) 10802 | -6/Factory | Lost 4 parts (4u) 11160 | -6/Factory | Build established: Scavenger-Mutant 11165 | -6/Factory | Found Prototype Launcher 11165 | -6/Factory | Identified Scatter Rocket Array 11257 | -6/Factory | System corruption reached 10% 11299 | -6/Factory | Lost 10 parts (4n4u2w) 11376 | -6/Factory | Core integrity fell below 50% 11658 | -6/Factory | Discovered new exit (range 7) 11990 | -6/Factory | First assault squad dispatched 12118 | -6/Factory | Entered Lower Caves 12232 | -6/Lower Caves | Encountered a Warlord checkpoint 12406 | -6/Lower Caves | Attracted the attention of an 0b10 outpost 12438 | -6/Lower Caves | Build established: Hacker-Mutant 12439 | -6/Lower Caves | Destroyed 7 combat bots 12782 | -6/Lower Caves | Attracted the attention of an 0b10 checkpoint 12790 | -6/Lower Caves | Discovered new exit (range 13) 12821 | -6/Lower Caves | Entered another Lower Caves area 12821 | -6/Lower Caves | Accompanied by 1 ally 12823 | -6/Lower Caves | Attracted the attention of an 0b10 checkpoint 13387 | -6/Lower Caves | Discovered new exit (range 13) 13704 | -6/Lower Caves | Entered Data Miner 13705 | -6/Data Miner | Discovered new exit (range 6) 13737 | -6/Data Miner | Met Data Miner 13780 | -6/Data Miner | Learned location of Section 7 (-2) 13780 | -6/Data Miner | Acquired the access code to Warlord's prototype stash 13806 | -6/Data Miner | Received God Mode back door access code from Data Miner 13882 | -6/Data Miner | Entered Proximity Caves 13982 | -5/Proximity Caves | Escorted by Enhanced Grunt 13982 | -5/Proximity Caves | Attracted the attention of an 0b10 outpost 14119 | -5/Proximity Caves | Found Prototype Device 14119 | -5/Proximity Caves | Identified Exp. Thermal Shield 14254 | -5/Proximity Caves | Attracted the attention of an 0b10 checkpoint 14294 | -5/Proximity Caves | Lost 3 parts (3w) 14402 | -5/Proximity Caves | Build established: Scavenger-Mutant 14698 | -5/Proximity Caves | Discovered new exit (range 10) 14713 | -5/Proximity Caves | Entered Factory 14713 | -5/Factory | Evolved 2 slots: Power x1, Propulsion x1 14859 | -5/Factory | Lost 4 parts (1p3n) 14922 | -5/Factory | Incoming investigation squad redirected 14985 | -5/Factory | Lost 3 parts (3u) 14987 | -5/Factory | Fabricated Combat Drone Bay? 15315 | -5/Factory | System corruption reached 10% 15351 | -5/Factory | Cargo convoy interrupted 15640 | -5/Factory | Lost 11 parts (1p6n3u1w) 15787 | -5/Factory | Core integrity fell below 50% 15960 | -5/Factory | Spotted B-75 Beast 16004 | -5/Factory | Incoming investigation squad redirected 16055 | -5/Factory | Build established: Scavenger-Gladiator 16130 | -5/Factory | Fabricated Lgt. Regenerative Plating? 16193 | -5/Factory | Lost 6 parts (2p3n1u) 16368 | -5/Factory | Lost 3 parts (1p2n) 16400 | -5/Factory | Core integrity fell below 20% 16431 | -5/Factory | Lost 7 parts (1p3n1u2w) 16557 | -5/Factory | Build established: Mutant 16561 | -5/Factory | Manually triggered Chute Trap 16561 | -5/Factory | Sucked down chute 16561 | -5/Factory | Entered Waste 16562 | -5/Waste | Joined by Warlord forces that had cleared the area 16858 | -5/Waste | Build established: Hacker-Mutant 17260 | -5/Waste | A Compactor rumbled back to life 17260 | -5/Waste | Spotted C-40 Crusher 17268 | -5/Waste | Allies destroyed C-40 Crusher 17389 | -5/Waste | Found Damper Plating 17804 | -5/Waste | Discovered new exit (range 13) 17818 | -5/Waste | Found Prototype Launcher 17818 | -5/Waste | Identified Tactical Quantum Warhead 17839 | -5/Waste | Build established: Mutant 17906 | -5/Waste | Found Prototype Device 17906 | -5/Waste | Identified Imp. Particle Accelerator 18126 | -5/Waste | Entered Factory 18126 | -5/Factory | Accompanied by 18 allies 18426 | -5/Factory | First assault squad dispatched 18460 | -5/Factory | Garrison activated, responded to threat 18481 | -5/Factory | Incoming investigation squad redirected 18548 | -5/Factory | Discovered new exit (range 33) 18601 | -5/Factory | Build established: Scavenger-Mutant 18655 | -5/Factory | Entered another Factory area 18655 | -4/Factory | Evolved 2 slots: Propulsion x1, Utility x1 19050 | -4/Factory | Repaired Centrium Heavy Treads 19893 | -4/Factory | Garrison activated, responded to threat 19988 | -4/Factory | Lost 13 parts (2p5n5u1w) 20076 | -4/Factory | Incoming investigation squad redirected 20098 | -4/Factory | Core integrity fell below 50% 20100 | -4/Factory | Discovered new exit (range 6) 20104 | -4/Factory | Identified exit to Extension 20105 | -4/Factory | Entered Extension 20207 | -4/Extension | Core integrity fell below 20% 20425 | -4/Extension | Rescued a captive Derelict 20426 | -4/Extension | Rescued a captive Derelict 20483 | -4/Extension | Rescued a captive Derelict 20500 | -4/Extension | Rescued a captive Derelict 20500 | -4/Extension | Rescued a captive Derelict 20549 | -4/Extension | Rescued a captive Derelict 20556 | -4/Extension | Rescued a captive Derelict 20605 | -4/Extension | Rescued A7 20633 | -4/Extension | System corruption reached 10% 20658 | -4/Extension | Rescued a captive Derelict 20847 | -4/Extension | Rescued a captive Derelict 20847 | -4/Extension | Rescued a captive Derelict 20944 | -4/Extension | Spotted B-86 Titan 20958 | -4/Extension | Allies destroyed B-86 Titan 20962 | -4/Extension | Spotted B-86 Titan 20969 | -4/Extension | Allies destroyed B-86 Titan 20989 | -4/Extension | Found Unknown Protection 20989 | -4/Extension | Identified Hvy. Reflective Plating 21049 | -4/Extension | Discovered new exit (range 3) 21051 | -4/Extension | Identified exit to Research 21057 | -4/Extension | Entered Research 21057 | -3/Research | Accompanied by 9 allies (A7) 21057 | -3/Research | Evolved 2 slots: Utility x1, Weapon x1 21355 | -3/Research | Build established: Scavenger-Tank 21368 | -3/Research | P-80 Master assimilated allied 7B-GP0(g) 21385 | -3/Research | System corruption reached 10% 21435 | -3/Research | Lost 3 parts (1p2u) 21667 | -3/Research | Build established: Scavenger-Mutant 21912 | -3/Research | Lost 8 parts (1p4n1u2w) 21979 | -3/Research | System corruption reached 30% 21984 | -3/Research | Released all parts (6) 22014 | -3/Research | Lost 11 parts (2p4n4u1w) 22042 | -3/Research | Core integrity fell below 50% 22056 | -3/Research | Discovered new exit (range 16) 22064 | -3/Research | Entered another Research area 22064 | -2/Research | Evolved 2 slots: Utility x2 22903 | -2/Research | Lost 3 parts (2n1w) 23118 | -2/Research | Identified exit to Access 23245 | -2/Research | System corruption reached 10% 23328 | -2/Research | Core integrity fell below 50% 23339 | -2/Research | Entered Access 23339 | -1/Access | Evolved 2 slots: Propulsion x2 23351 | -1/Access | Lost 17 parts (3p8n3u3w) 23416 | -1/Access | Incoming investigation squad redirected 23510 | -1/Access | Found Hvy. Reflective Plating 23556 | -1/Access | Discovered new exit (range 7) 23560 | -1/Access | Entered Command 23654 | -1/Command | Build established: Mutant 23970 | -1/Command | System corruption reached 10% 23972 | -1/Command | Core integrity fell below 50% 24017 | -1/Command | Lost 18 parts (2p6n7u3w) 24085 | -1/Command | Core integrity fell below 20% 24092 | -1/Command | Destroyed by H-88 Terminator with KE Penetrator Last Messages --------------- 24068_ Penetrated by Slug. 24080_ W-44 Eye sends out distress signal. 24081_ Slug penetrates Wall. 24081_ Penetrated by Slug. 24081_ Slug penetrates Wall. 24082_ Impulse Thruster destroyed. 24083_ Slug penetrates Wall. 24083_ Penetrated by Slug. 24083_ Com. Matter Pod destroyed. 24084_ Slug penetrates Wall. 24084_ Penetrated by Slug. 24085_ Slug penetrates H-88 Terminator. 24085_ Penetrated by Slug. 24085_ Xenon Bombardment Thruster destroyed. 24087_ Slug penetrates Wall. 24088_ Penetrated by Slug. 24090_ Impulse Thruster destroyed. 24090_ Slug penetrates Wall. 24092_ Slammed into G-73 Enforcer. 24092_ Slug penetrates Wall. Map ----- +----------------------------------------------------+ | ???????????????# / ???????????### | | ???????????????# #???????????????? | | ???????????????# #???????????????? | | ???????????????# #???????????????? | | ???????????????# #???????????????? | | ???????????????# #???????????????? | | ???????????????# #############+##########???????? | | ???????????????# #?######### #???????? | | ???????????????# # ! % " #???????? | | ???????????????# # # #???????? | | ???????????????# # = # #???????? | | ???????????????# / #p #???????? | | ???????????????# ####+######h####"#######???????? | | ???????????????# #?????# #???????????? | | ???????????????# #??? ?# #???????????? | | ???????????????# #??? ## """ #???????????? | | ???????????????# #??? ## """ #???????????? | | ???????????????# #??? # R" #???????????? | | ???????????????# #?? # """ #???????????? | | ???????????????+ #?? # #???????????? | | ???????????????+ #?? # #???????????? | | ???????????????+ #?# ## #???????????? | | ???????????????+ #?# ## #???????????? | | ???????????????# #?# ## #???????????? | | ???????????????# #?# ## #???????????? | | ???????????????# ### ##@############???????????? | | ???????????????# g #???????????????????? | | ???????????????# #???????????????????? | | ?????????????####### b #???????????????????? | | ?????????????# ??# !!= #???????????########? | | ?????????????# ?# != g #???????????# = | | ?????????????# ?# != ########????# ? | | ?????????????# # #** #???? | | ?????????????# # #** #????# "" "" | | ?????????????# / #** #????# ""R"" | | ?????????????# # # #????# """" | | ?????????????# ###+## # ??????# ?? | | ?????????????# ??# #### #! ????????# ???? | | ?????????????# ??# #??# #+############+###### | | ?????????????# ???# #??# | | ?????????????# ???# #??# #########/#### | | ?????????????###????# #??# ## # | | ????????????????????# #??# ## # | | ????????????????????# #??# ## ] # | | ????????????????????#####??# ## # | | ???????????????????????????# ## # ###### | | ???????????????????????????# ## # #????? | | ???????????????????????????# ############## #????? | | ???????????????????????????# # # ###### | | ???????????????????????????# # + | +----------------------------------------------------+ Best States ------------- Heat Dissipation 81 Energy Generation 43 Energy Capacity 660 Matter Stores 400 Matter Capacity 450 Sight Range 22 Robot Scan Range 18 Terrain Scan Range 16 Terrain Scan Density 210 Jamming Range 16 Additional Mass Support 16 Base Temperature (-) 200 Armor Coverage 3200 Resistance: KI 25 Resistance: TH 30 Resistance: EX 50 Resistance: EM 90 Power Shielding 33 Propulsion Shielding 66 Melee Speed Boost 20 Phase Shifting 15 Evasion (%) 70 Targeting Accuracy 8 Melee Accuracy 6 Target Analysis 12 Armor Integrity Analysis 30 Recoil Reduction 6 Particle Charging 40 Offensive Hacking 24 Defensive Hacking 24 Item Schematics ----------------- Arm. Medium Treads | -6/Factory | Hacked Combat Drone Bay | -6/Data Miner | Free Lgt. Regenerative Plating | -6/Data Miner | Free Enh. Flexi-carbon Leg | -6/Data Miner | Free Imp. Energy Well | -6/Data Miner | Free Imp. KE Penetrator | -6/Data Miner | Free Imp. Linear Gravjet | -6/Data Miner | Free Adv. Particle Charger | -6/Data Miner | Free Hardcell Cannon | -6/Data Miner | Free Particle Reactor | -6/Data Miner | Free Robot Schematics ------------------ P-70 Sage | -6/Data Miner | Free Y-64 Sentinel | -6/Data Miner | Free C-35 Carver | -6/Data Miner | Free B-60 Warrior | -6/Data Miner | Free G-67 Veteran | -6/Data Miner | Free A-27 Freighter | -6/Data Miner | Free Fabricated ------------ I-36 Angel | x1 | -7/Factory | Preloaded Arm. Medium Treads | x2 | -6/Factory Combat Drone Bay | x1 | -5/Factory Lgt. Regenerative Plating | x1 | -5/Factory Alien Tech Used ----------------- None Achievements -------------- None Challenges ------------ None Game ------ Seed OpticalRecoilClaws Manual? 0 Play Time 03:07:33 Cumulative 511.3 hours Start 2022.09.14 @ 15:36:46 End 2022.09.15 @ 14:02:29 Sessions 1 Manual Loads 0 Difficulty Rogue Special Mode None Game No. 572 Rogue 571 Adventurer 0 Explorer 1 Win Type - Total 18 Types 12/0/3/3/0/0/0/0/0 Lore% 80 Gallery% 90 Achievement% 72 Wizard Run 0 Options --------- ASCII 0 Keyboard 1 Movement Vi Keybinds 0 Fullscreen 1 Font 18/SmallcapsGlow Map View 76x50 Tactical HUD 1 Map Filters NONE Filters NONE Steam 1 RUN: 199e7637-ddf5-49d5-892c-5044d2627869